bitfinex/quotes_SOLUSD_20250413
["timestamp","ask_amount","ask_price","bid_price","bid_amount"]
[1744533350730,7.7495,129.04,129.03,2.82946872]
[1744533351853,26.39914886,129.04,129.03,2.82946872]
[1744533352659,7.7495,129.04,129.03,2.82946872]
[1744533352867,26.39914886,129.04,129.03,2.82946872]
[1744533357759,40.4904785,129.04,129.03,2.82946872]
[1744533358960,26.39914886,129.04,129.03,2.82946872]
[1744533359362,40.4904785,129.04,129.03,2.82946872]
[1744533360059,40.91696321,129.04,129.03,2.82946872]
[1744533361739,40.91696321,129.04,129.03,0.063]
[1744533364266,40.91696321,129.04,129.03,0.0001]
[1744533365867,55.00829285,129.04,129.03,0.0001]
[1744533366248,40.91696321,129.04,129.03,0.0001]
[1744533366868,64.09696321,129.04,129.03,0.0001]
[1744533367048,40.91696321,129.04,129.03,0.0001]
[1744533367364,35.84701559,129.04,129.03,0.0001]
[1744533367667,35.70485402,129.04,129.03,0.0001]
[1744533368763,35.84701559,129.04,129.03,0.0001]
[1744533373656,42.16524055,129.04,129.03,0.0001]
[1744533374264,78.25076863,129.04,129.03,0.0001]
[1744533375872,42.16524055,129.04,129.03,0.0001]
[1744533378678,35.84701559,129.04,129.03,0.0001]
[1744533378878,26.39914886,129.04,129.03,0.0001]
[1744533379480,35.42053088,129.04,129.03,2.74957226]
[1744533379852,35.56269245,129.04,129.03,2.74957226]
[1744533380074,35.84701559,129.04,129.03,2.74957226]
[1744533380478,35.84701559,129.04,129.03,0.0001]
[1744533383879,42.72701559,129.04,129.03,0.0001]
[1744533388488,42.72701559,129.04,129.03,2.75513354]
[1744533389389,42.72701559,129.04,129.03,0.0001]
[1744533390973,42.72701559,129.04,129.03,2.75481229]
[1744533391584,42.30053088,129.04,129.03,2.75481229]
[1744533391984,33.27914886,129.04,129.03,2.75481229]
[1744533392167,42.30053088,129.04,129.03,2.75481229]
[1744533395202,33.27914886,129.04,129.03,2.75481229]
[1744533395393,33.27914886,129.04,129.03,2.50481229]
[1744533396500,42.30053088,129.04,129.03,2.50481229]
[1744533396803,42.72701559,129.04,129.03,2.50481229]
[1744533402603,46.76464925,129.04,129.03,2.50481229]
[1744533406708,37.74326723,129.04,129.03,2.50481229]
[1744533407107,10.91763366,129.04,129.03,11.52619431]
[1744533407308,6.88,129.04,129.03,11.52619431]
[1744533408308,26.39814886,129.06,129.03,11.52619431]
[1744533408490,26.39814886,129.06,129.04,9.02138202]
[1744533408999,26.39814886,129.06,129.05,2.50481229]
[1744533409195,18.64964886,129.06,129.05,2.50481229]
[1744533409603,81.0,129.07,129.05,11.52619431]
[1744533410313,81.0,129.07,129.06,2.50481229]
[1744533420231,81.0,129.07,129.06,11.52619431]
[1744533420527,0.063,129.1,129.06,11.52619431]
[1744533420709,0.063,129.1,129.09,9.02138202]
[1744533421113,0.063,129.1,129.09,11.52619431]
[1744533423422,0.063,129.1,129.09,19.27269431]
[1744533424419,0.063,129.1,129.09,11.52619431]
[1744533426342,0.063,129.1,129.09,2.50481229]
[1744533427750,0.063,129.1,129.07,10.64808202]
[1744533428041,0.063,129.1,129.08,9.02138202]
[1744533428240,0.063,129.1,129.09,9.02138202]
[1744533430040,0.063,129.1,129.09,11.7528458]
[1744533430839,0.063,129.12,129.11,1.6337]
[1744533431023,0.063,129.12,129.11,44.40038202]
[1744533431223,0.063,129.12,129.11,47.1318458]
[1744533431533,0.063,129.12,129.11,39.3865458]
[1744533432137,0.063,129.12,129.11,47.1318458]
[1744533436532,0.03,129.16,129.14,26.0]
[1744533436731,0.03,129.16,129.15,9.02138202]
[1744533438030,0.03,129.16,129.15,11.73625068]
[1744533438438,0.03,129.16,129.15,19.47915068]
[1744533440430,0.03,129.16,129.15,2.71486866]
[1744533440838,0.03,129.16,129.12,9.02138202]
[1744533441241,9.05138202,129.16,129.11,9.02138202]
[1744533442379,27.67103088,129.14,129.07,1.531]
[1744533442547,9.02138202,129.11,129.06,9.02138202]
[1744533443237,14.07854959,129.11,129.06,14.07854959]
[1744533443466,14.07854959,129.1,129.05,21.82744959]
[1744533443666,99.64964886,129.13,129.05,21.82744959]
[1744533443667,14.07854959,129.11,129.06,14.07854959]
[1744533444264,7.7459,129.1,129.06,14.07854959]
[1744533449443,21.82444959,129.1,129.05,14.10854959]
[1744533450270,32.72819845,129.09,129.05,0.03]
[1744533451153,14.07854959,129.08,129.05,0.03]
[1744533451359,7.7477,129.07,129.05,0.03]
[1744533453156,7.7473,129.08,129.05,14.10854959]
[1744533454271,0.03,129.16,129.14,0.28432314]
[1744533454446,0.063,129.18,129.17,26.0]
[1744533454650,0.063,129.18,129.17,40.07854959]
[1744533454843,0.063,129.18,129.17,42.79597285]
[1744533455258,0.063,129.18,129.17,49.63597285]
[1744533456164,0.063,129.2,129.18,0.14216157]
[1744533456344,0.063,129.22,129.21,26.0]
[1744533456553,0.03,129.24,129.23,26.0]
[1744533456762,0.03,129.24,129.23,42.79597285]
[1744533456965,0.03,129.25,129.23,42.79597285]
[1744533457347,0.03,129.25,129.24,14.07854959]
[1744533457578,0.03,129.25,129.24,16.79597285]
[1744533458752,0.03,129.25,129.24,24.53347285]
[1744533459373,0.03,129.27,129.24,48.73477503]
[1744533459568,0.03,129.34,129.26,40.22071116]
[1744533459869,0.03,129.34,129.32,14.07854959]
[1744533460068,0.03,129.34,129.33,14.07854959]
[1744533461366,0.03,129.34,129.33,22.43274451]
[1744533461571,0.03,129.34,129.32,22.43274451]
[1744533463771,0.03,129.34,129.33,22.43274451]
[1744533464369,0.03,129.34,129.31,22.43274451]
[1744533464574,0.03,129.34,129.3,22.43274451]
[1744533465161,0.03,129.34,129.31,22.43274451]
[1744533467275,0.03,129.34,129.28,26.0]
[1744533467467,18.64964886,129.33,129.29,22.43274451]
[1744533467673,18.64964886,129.33,129.3,22.43274451]
[1744533467867,18.67964886,129.34,129.3,22.43274451]
[1744533468878,7.7321,129.33,129.27,7.7356]
[1744533469053,7.7321,129.33,129.3,22.43274451]
[1744533469260,48.81449337,129.33,129.28,22.43274451]
[1744533469459,18.64964886,129.32,129.28,22.43274451]
[1744533470479,7.7333,129.31,129.27,22.43274451]
[1744533470671,22.43274451,129.31,129.26,22.43274451]
[1744533470974,22.43274451,129.29,129.23,48.40260437]
[1744533471182,22.43274451,129.29,129.24,22.43274451]
[1744533472163,22.43274451,129.28,129.23,22.18274451]
[1744533472365,28.85804451,129.28,129.23,22.18274451]
[1744533472580,7.7357,129.27,129.23,22.18274451]
[1744533473056,7.7357,129.27,129.24,22.43274451]
[1744533473655,7.7357,129.27,129.23,22.43274451]
[1744533473861,7.7357,129.27,129.22,22.43274451]
[1744533473862,30.16844451,129.27,129.22,22.43274451]
[1744533474562,7.7357,129.27,129.23,22.43274451]
[1744533477181,6.4253,129.28,129.24,22.43274451]
[1744533477358,6.4253,129.28,129.27,22.43274451]
[1744533478386,88.7341,129.3,129.27,22.43274451]
[1744533480988,88.7341,129.3,129.26,22.43274451]
[1744533481378,35.03177471,129.3,129.26,22.43274451]
[1744533482582,57.46451922,129.3,129.25,22.43274451]
[1744533482785,22.43274451,129.29,129.24,22.43274451]
[1744533483376,14.03906702,129.29,129.24,14.03906702]
[1744533484690,7.7351,129.28,129.24,14.03906702]
[1744533485275,21.77416702,129.28,129.23,14.03906702]
[1744533485481,14.03906702,129.27,129.22,14.03906702]
[1744533486093,21.77416702,129.28,129.23,14.03906702]
[1744533491088,21.77416702,129.28,129.21,7.7392]
[1744533491288,21.77416702,129.28,129.23,14.03906702]
[1744533491596,7.7351,129.28,129.24,14.03906702]
[1744533491904,116.03177471,129.3,129.26,14.03906702]
[1744533492069,116.03177471,129.3,129.27,14.03906702]
[1744533492396,27.29767471,129.3,129.29,14.03906702]
[1744533493098,27.29767471,129.3,129.29,21.77356702]
[1744533494999,27.29767471,129.3,129.27,26.0]
[1744533495200,27.29767471,129.3,129.26,21.77476702]
[1744533495794,27.29767471,129.3,129.27,14.03906702]
[1744533496001,27.29767471,129.3,129.28,14.03906702]
[1744533496300,27.29767471,129.3,129.29,14.03906702]
[1744533496977,27.29767471,129.3,129.29,21.77356702]
[1744533497283,27.29767471,129.3,129.29,24.47355488]
[1744533497994,7.7621,129.33,129.29,16.73905488]
[1744533498201,0.03,129.33,129.3,14.03906702]
[1744533498588,7.7622,129.33,129.3,14.03906702]
[1744533498902,0.03,129.33,129.31,2.69998786]
[1744533499700,0.03,129.33,129.32,2.69998786]
[1744533501004,22.46953948,129.33,129.32,2.69998786]
[1744533501184,41.11918834,129.33,129.32,2.69998786]
[1744533501708,41.11918834,129.33,129.28,2.69998786]
[1744533501882,22.43953948,129.31,129.28,2.69998786]
[1744533502304,41.08918834,129.32,129.29,2.69998786]
[1744533502708,7.7333,129.31,129.29,2.69998786]
[1744533502905,7.7333,129.31,129.3,2.69998786]
[1744533506216,30.17283948,129.31,129.3,2.69998786]
[1744533506586,6.2846,129.3,129.28,2.69998786]
[1744533506805,22.43953948,129.29,129.28,2.69998786]
[1744533507390,22.43953948,129.29,129.25,2.69998786]
[1744533507590,22.43953948,129.28,129.25,2.69998786]
[1744533508019,30.17443948,129.29,129.26,2.69998786]
[1744533508392,14.0187,129.3,129.26,25.13952734]
[1744533508796,14.0187,129.3,129.26,2.69998786]
[1744533509095,14.0187,129.3,129.27,2.69998786]
[1744533509479,14.0187,129.3,129.28,2.69998786]
[1744533510213,7.7335,129.31,129.26,32.87572734]
[1744533510513,7.7335,129.31,129.26,25.13952734]
[1744533510685,30.17303948,129.31,129.26,2.69998786]
[1744533510999,30.17303948,129.31,129.27,2.69998786]
[1744533511308,7.7335,129.31,129.27,2.69998786]
[1744533511505,7.7329,129.32,129.28,22.43953948]
[1744533511685,7.7329,129.32,129.29,2.69998786]
[1744533512085,30.17243948,129.32,129.29,2.69998786]
[1744533512499,22.43953948,129.31,129.29,2.69998786]
[1744533512701,22.43953948,129.31,129.28,2.69998786]
[1744533513207,30.17243948,129.32,129.27,2.69998786]
[1744533513399,30.17243948,129.32,129.27,10.43568786]
[1744533513585,30.17243948,129.32,129.27,32.87522734]
[1744533513782,22.43953948,129.31,129.27,2.69998786]
[1744533514105,22.43953948,129.31,129.28,2.69998786]
[1744533514805,22.43953948,129.31,129.26,22.43953948]
[1744533514806,22.43953948,129.31,129.29,2.69998786]
[1744533515215,48.82208834,129.32,129.29,2.69998786]
[1744533515591,48.82208834,129.32,129.26,22.43953948]
[1744533515592,48.82208834,129.32,129.27,2.69998786]
[1744533516690,22.43953948,129.31,129.28,2.69998786]
[1744533517504,22.43953948,129.31,129.26,2.69998786]
[1744533517704,7.7339,129.3,129.26,25.13952734]
[1744533518408,7.7339,129.3,129.27,2.69998786]
[1744533519208,7.7339,129.3,129.28,2.69998786]
[1744533520110,7.7339,129.3,129.27,2.69998786]
[1744533521112,7.7339,129.3,129.28,2.69998786]
[1744533522096,7.7335,129.31,129.28,2.69998786]
[1744533522409,14.03292214,129.31,129.29,2.69998786]
[1744533523322,14.03292214,129.31,129.26,2.69998786]
[1744533524007,14.03292214,129.31,129.27,2.69998786]
[1744533524816,7.7339,129.3,129.28,2.69998786]
[1744533525917,7.7339,129.3,129.29,2.69998786]
[1744533526620,21.76682214,129.3,129.29,2.69998786]
[1744533526916,21.76682214,129.3,129.25,2.69998786]
[1744533527119,14.03292214,129.29,129.25,2.69998786]
[1744533527319,21.76682214,129.3,129.25,2.69998786]
[1744533527520,21.76682214,129.3,129.25,16.73291]
[1744533527693,21.76682214,129.3,129.26,2.69998786]
[1744533529005,21.76682214,129.3,129.27,2.69998786]
[1744533529829,21.76682214,129.3,129.28,2.69998786]
[1744533530528,21.76682214,129.3,129.29,2.69998786]
[1744533531317,21.76682214,129.3,129.26,2.69998786]
[1744533531827,7.7339,129.3,129.26,16.73291]
[1744533532031,7.7339,129.3,129.27,2.69998786]
[1744533532545,14.03292214,129.29,129.27,2.69998786]
[1744533532831,14.03292214,129.29,129.28,2.69998786]
[1744533534240,21.76742214,129.29,129.28,2.69998786]
[1744533536135,14.03292214,129.3,129.28,2.69998786]
[1744533536319,14.03292214,129.3,129.29,2.69998786]
[1744533537536,14.03292214,129.3,129.26,2.69998786]
[1744533537833,18.64964886,129.31,129.26,2.69998786]
[1744533538018,14.03292214,129.28,129.26,2.69998786]
[1744533538217,21.76822214,129.28,129.26,2.69998786]
[1744533538419,7.7353,129.28,129.26,2.69998786]
[1744533538636,7.7353,129.28,129.27,2.69998786]
[1744533540240,21.76762214,129.29,129.27,2.69998786]
[1744533541238,21.76762214,129.29,129.28,2.69998786]
[1744533542144,7.7347,129.29,129.28,2.69998786]
[1744533543848,0.42648471,129.27,129.21,0.063]
[1744533544048,14.03292214,129.23,129.21,0.063]
[1744533544747,14.03292214,129.24,129.21,0.063]
[1744533544944,14.03292214,129.23,129.21,0.063]
[1744533545441,8.99176457,129.23,129.21,0.063]
[1744533545928,16.72986457,129.23,129.21,0.063]
[1744533546257,8.99176457,129.22,129.21,0.063]
[1744533547347,14.05301428,129.22,129.21,0.063]
[1744533548030,28.28961428,129.24,129.21,0.063]
[1744533548217,14.05301428,129.23,129.21,0.063]
[1744533550157,27.14784886,129.26,129.21,14.11601428]
[1744533550158,22.55121428,129.26,129.21,14.11601428]
[1744533550355,87.1204,129.28,129.21,0.063]
[1744533550517,7.7347,129.29,129.26,14.05301428]
[1744533551237,21.78771428,129.29,129.24,14.05301428]
[1744533551435,16.12,129.3,129.26,14.05301428]
[1744533552149,6.84,129.3,129.26,21.78911428]
[1744533552326,6.84,129.3,129.27,14.05301428]
[1744533552528,27.90671428,129.31,129.26,14.05301428]
[1744533553656,14.05301428,129.29,129.25,26.0]
[1744533553844,14.05301428,129.29,129.24,14.05301428]
[1744533554228,14.05301428,129.3,129.25,14.05301428]
[1744533554865,7.7345,129.29,129.25,14.05301428]
[1744533555353,13.8539,129.31,129.27,14.05301428]
[1744533555677,7.7329,129.32,129.28,14.05301428]
[1744533557068,7.7329,129.32,129.29,2.68823491]
[1744533558154,7.7329,129.32,129.28,14.05301428]
[1744533558555,7.7329,129.32,129.29,14.05301428]
[1744533559149,7.7329,129.32,129.28,14.05301428]
[1744533559674,0.03,129.33,129.31,14.05301428]
[1744533560061,0.03,129.33,129.32,14.05301428]
[1744533560672,0.03,129.33,129.32,21.92787585]
[1744533560854,0.03,129.33,129.32,24.89174357]
[1744533561169,0.03,129.33,129.32,24.46525886]
[1744533561375,0.03,129.33,129.32,2.67954458]
[1744533561991,0.03,129.33,129.32,16.73255886]
[1744533562989,0.03,129.33,129.32,24.46525886]
[1744533563992,0.03,129.33,129.32,16.73255886]
[1744533564787,0.03,129.33,129.32,24.46525886]
[1744533565487,0.03,129.33,129.32,16.73255886]
[1744533565699,0.03,129.33,129.32,24.46525886]
[1744533567300,0.03,129.33,129.32,2.67954458]
[1744533567603,0.03,129.33,129.32,16.73255886]
[1744533567979,0.03,129.33,129.32,14.05301428]
[1744533568885,0.03,129.33,129.31,33.7331]
[1744533569091,0.03,129.33,129.31,26.0]
[1744533570787,0.03,129.33,129.27,46.47364886]
[1744533570788,14.08301428,129.33,129.25,19.48446157]
[1744533571095,14.08301428,129.33,129.28,40.05301428]
[1744533571907,14.08301428,129.33,129.28,47.78781428]
[1744533572396,21.81521428,129.33,129.28,47.78781428]
[1744533572601,14.08301428,129.33,129.28,47.78781428]
[1744533572896,0.03,129.33,129.3,14.05301428]
[1744533573097,0.03,129.33,129.31,14.05301428]
[1744533573681,0.03,129.33,129.3,14.05301428]
[1744533574683,0.03,129.33,129.29,14.05301428]
[1744533575285,14.08301428,129.33,129.28,40.05301428]
[1744533577108,7.7327,129.32,129.28,40.05301428]
[1744533578173,0.03,129.33,129.3,14.05301428]
[1744533578378,0.03,129.33,129.31,14.05301428]
[1744533579000,0.03,129.33,129.3,14.05301428]
[1744533579379,0.03,129.33,129.31,14.05301428]
[1744533583504,0.03,129.33,129.31,8.97467486]
[1744533584905,0.03,129.33,129.3,8.97467486]
[1744533586884,0.03,129.33,129.31,8.97467486]
[1744533594807,0.03,129.33,129.29,8.97467486]
[1744533595506,0.03,129.33,129.3,2.68535276]
[1744533596502,0.03,129.33,129.31,2.68535276]
[1744533600019,9.00467486,129.33,129.31,2.68535276]
[1744533600417,9.00467486,129.33,129.29,2.68535276]
[1744533600718,0.03,129.36,129.33,1.0]
[1744533600908,0.03,129.43,129.38,0.28432314]
[1744533601217,0.03,129.43,129.41,8.97467486]
[1744533601391,0.03,129.43,129.42,26.0]
[1744533601594,9.00467486,129.43,129.38,26.0]
[1744533601811,8.0537,129.42,129.39,26.0]
[1744533602119,0.03,129.43,129.4,8.97467486]
[1744533602613,0.03,129.43,129.41,2.68653158]
[1744533603401,0.03,129.43,129.42,2.68653158]
[1744533604720,14.45946432,129.43,129.42,2.68653158]
[1744533605217,0.03,129.43,129.39,14.00297961]
[1744533605612,0.03,129.43,129.38,40.00297961]
[1744533605814,0.03,129.43,129.39,14.00297961]
[1744533606321,0.03,129.43,129.4,2.68059461]
[1744533606819,14.00297961,129.42,129.4,2.68059461]
[1744533607215,14.00297961,129.42,129.38,26.0]
[1744533607416,14.00297961,129.42,129.38,33.7289]
[1744533607816,14.00297961,129.4,129.35,14.00297961]
[1744533608216,0.03,129.43,129.38,14.00297961]
[1744533608425,32.68262847,129.43,129.38,14.00297961]
[1744533610135,14.00297961,129.42,129.37,21.73207961]
[1744533610331,14.00297961,129.41,129.36,47.73317961]
[1744533610523,14.00297961,129.42,129.37,14.00297961]
[1744533611435,40.40882847,129.43,129.38,14.00297961]
[1744533611644,21.75917961,129.43,129.38,21.73187961]
[1744533611936,14.00297961,129.42,129.37,21.73247961]
[1744533612131,21.75917961,129.43,129.38,14.00297961]
[1744533612437,21.75917961,129.43,129.38,16.68108263]
[1744533612935,21.75917961,129.43,129.38,24.41018263]
[1744533613132,0.03,129.43,129.39,14.00297961]
[1744533613336,0.03,129.43,129.4,14.00297961]
[1744533613525,0.03,129.43,129.39,16.68108263]
[1744533613838,0.03,129.43,129.4,2.67810302]
[1744533614136,14.03297961,129.43,129.4,2.67810302]
[1744533614325,0.03,129.43,129.4,2.67810302]
[1744533614933,0.03,129.43,129.39,14.00297961]
[1744533615344,0.03,129.43,129.4,14.00297961]
[1744533616742,0.03,129.43,129.39,14.00297961]
[1744533620742,26.40594886,129.43,129.35,7.7309]
[1744533620942,14.00297961,129.41,129.36,26.0]
[1744533621140,6.2203,129.39,129.36,26.0]
[1744533621328,7.7348,129.39,129.37,2.67418607]
[1744533621924,7.7348,129.39,129.36,14.00297961]
[1744533623547,7.7348,129.39,129.37,16.67835467]
[1744533624124,7.7269,129.42,129.38,14.00297961]
[1744533624646,7.7269,129.42,129.39,2.67537506]
[1744533625531,7.7269,129.42,129.38,8.96449306]
[1744533627039,7.7352,129.43,129.4,8.96449306]
[1744533627239,7.7352,129.43,129.41,8.96449306]
[1744533629927,0.03,129.43,129.42,8.96449306]
[1744533630646,0.03,129.43,129.41,8.96449306]
[1744533630824,0.03,129.43,129.4,34.96449306]
[1744533631022,35.37064192,129.43,129.36,7.7302]
[1744533631230,8.96449306,129.42,129.39,26.0]
[1744533631428,8.96449306,129.42,129.36,7.7302]
[1744533631648,8.1843,129.41,129.37,8.96449306]
[1744533631846,24.87659306,129.41,129.36,8.96449306]
[1744533632247,15.9121,129.41,129.37,11.64101282]
[1744533632737,24.87659306,129.41,129.37,2.67651976]
[1744533632947,24.87659306,129.41,129.38,2.67651976]
[1744533633766,24.87659306,129.41,129.37,2.67651976]
[1744533633767,27.61414192,129.39,129.37,2.67651976]
[1744533633933,27.61414192,129.38,129.37,2.67651976]
[1744533634129,8.96449306,129.38,129.37,2.67651976]
[1744533634337,27.61414192,129.39,129.37,2.67651976]
[1744533634634,27.61414192,129.39,129.34,9.02749306]
[1744533635256,7.7291,129.38,129.34,9.02749306]
[1744533635750,26.37874886,129.38,129.34,0.063]
[1744533635972,7.7291,129.38,129.34,0.063]
[1744533636434,26.37874886,129.38,129.35,2.68028199]
[1744533637147,35.34324192,129.38,129.35,2.68028199]
[1744533637360,7.7303,129.36,129.34,0.063]
[1744533638156,7.7297,129.38,129.35,8.96449306]
[1744533638359,7.7297,129.38,129.36,8.96449306]
[1744533638658,7.7297,129.38,129.35,8.96449306]
[1744533638863,7.7297,129.38,129.34,9.02749306]
[1744533639163,16.69419306,129.38,129.34,0.063]
[1744533639457,7.7297,129.38,129.34,0.063]
[1744533639643,7.7297,129.38,129.35,8.96449306]
[1744533640859,0.42648471,129.37,129.34,0.063]
[1744533641043,28.04062663,129.37,129.34,0.063]
[1744533641245,19.07613357,129.37,129.34,0.063]
[1744533641451,7.7303,129.36,129.34,0.063]
[1744533641961,7.8583,129.35,129.34,0.063]
[1744533642544,16.82279306,129.35,129.34,0.063]
[1744533644247,43.62982663,129.35,129.34,0.063]
[1744533644643,143.95722663,129.35,129.32,0.063]
[1744533644852,28.04062663,129.33,129.32,0.063]
[1744533645366,19.07613357,129.33,129.32,0.063]
[1744533646879,35.77272663,129.33,129.32,0.063]
[1744533647469,16.69659306,129.33,129.32,0.063]
[1744533647770,108.1857,129.35,129.32,9.02749306]
[1744533647771,7.7316,129.34,129.32,9.02749306]
[1744533648852,88.731,129.35,129.33,8.96449306]
[1744533649056,88.731,129.35,129.34,8.96449306]
[1744533649471,8.1442,129.39,129.34,8.96449306]
[1744533649676,8.1442,129.39,129.38,8.96449306]
[1744533649867,95.5481,129.4,129.38,8.96449306]
[1744533650270,104.51259306,129.4,129.32,7.7956]
[1744533650488,8.96449306,129.39,129.33,2.67738326]
[1744533650780,8.96449306,129.39,129.34,8.96449306]
[1744533651182,7.7291,129.38,129.34,8.96449306]
[1744533651363,7.7291,129.38,129.34,14.0166606]
[1744533652498,21.7457606,129.38,129.33,14.0166606]
[1744533652677,41.23699417,129.37,129.32,14.0796606]
[1744533652880,14.0166606,129.36,129.32,0.063]
[1744533653594,7.7309,129.35,129.33,2.67988203]
[1744533654293,7.7303,129.36,129.32,14.0796606]
[1744533654603,7.7303,129.36,129.33,14.0166606]
[1744533656298,7.7303,129.36,129.32,14.0796606]
[1744533656902,7.7303,129.36,129.33,2.68065774]
[1744533657399,21.7469606,129.36,129.33,2.68065774]
[1744533657699,21.7469606,129.36,129.32,0.063]
[1744533658300,7.7303,129.36,129.32,14.0796606]
[1744533659399,7.7303,129.36,129.33,2.68151077]
[1744533660182,7.7303,129.36,129.32,14.0796606]
[1744533662117,7.7303,129.36,129.33,2.68231434]
[1744533662819,7.7303,129.36,129.32,14.0796606]
[1744533664227,0.03,129.44,129.39,26.0]
[1744533664531,0.03,129.44,129.41,14.0166606]
[1744533665322,0.03,129.44,129.41,16.69601902]
[1744533670114,0.03,129.44,129.41,24.42331902]
[1744533671324,0.03,129.44,129.41,24.56548059]
[1744533671498,0.03,129.44,129.42,14.0166606]
[1744533672228,6.538,129.66,129.46,46.55216157]
[1744533672402,14.0166606,129.61,129.55,14.0166606]
[1744533672596,14.0166606,129.58,129.52,40.0166606]
[1744533672915,14.0166606,129.6,129.54,14.0166606]
[1744533673117,16.655686,129.59,129.53,14.0166606]
[1744533673295,2.6390254,129.59,129.57,14.0166606]
[1744533674128,2.6390254,129.59,129.58,14.0166606]
[1744533674329,2.6390254,129.59,129.58,21.7338606]
[1744533675420,2.6390254,129.59,129.58,14.0166606]
[1744533679326,2.6390254,129.59,129.58,21.7338606]
[1744533680109,2.6390254,129.59,129.58,14.0166606]
[1744533680923,2.6390254,129.59,129.57,14.0166606]
[1744533682032,2.6390254,129.59,129.58,14.0166606]
[1744533682727,2.6390254,129.59,129.58,26.0]
[1744533682931,2.6390254,129.59,129.55,14.0166606]
[1744533683111,2.6390254,129.59,129.56,14.0166606]
[1744533683927,10.3556254,129.59,129.56,14.0166606]
[1744533685729,10.3556254,129.59,129.56,26.0]
[1744533686218,10.3556254,129.59,129.54,14.0166606]
[1744533686422,24.372286,129.59,129.54,14.0166606]
[1744533687023,10.3556254,129.59,129.55,14.0166606]
[1744533688219,6.2387,129.58,129.54,14.0166606]
[1744533688939,6.2387,129.58,129.55,14.0166606]
[1744533689523,13.9561,129.58,129.55,14.0166606]
[1744533689720,6.2387,129.58,129.55,14.0166606]
[1744533690034,6.2387,129.58,129.56,14.0166606]
[1744533690421,6.2387,129.58,129.55,14.0166606]
[1744533690621,13.9559,129.58,129.55,26.0]
[1744533691239,13.9559,129.58,129.55,40.0166606]
[1744533691438,6.2387,129.58,129.55,40.0166606]
[1744533691628,2.6390254,129.59,129.56,14.0166606]
[1744533692429,2.6390254,129.59,129.58,14.0166606]
[1744533693631,2.6390254,129.59,129.58,21.7338606]
[1744533695644,2.6390254,129.59,129.54,0.14216157]
[1744533695948,2.6390254,129.59,129.57,14.0166606]
[1744533696432,2.6390254,129.59,129.58,14.0166606]
[1744533698141,2.6390254,129.59,129.57,14.0166606]
[1744533699546,2.6390254,129.59,129.56,7.7181]
[1744533699547,2.6390254,129.59,129.56,14.0166606]
[1744533701651,2.6390254,129.59,129.57,14.0166606]
[1744533701836,2.6390254,129.59,129.54,7.7196]
[1744533702036,2.6390254,129.59,129.57,14.0166606]
[1744533703649,2.6390254,129.59,129.58,14.0166606]
[1744533705630,2.6390254,129.59,129.58,21.7338606]
[1744533705830,2.6390254,129.59,129.57,14.0166606]
[1744533706026,2.6390254,129.59,129.57,40.0166606]
[1744533707054,2.6390254,129.59,129.58,14.0166606]
[1744533708654,2.6390254,129.59,129.57,40.0166606]
[1744533708862,2.6390254,129.59,129.58,14.0166606]
[1744533709358,2.6390254,129.59,129.58,16.6676641]
[1744533710456,2.6390254,129.59,129.58,24.3848641]
[1744533711045,2.6390254,129.59,129.58,16.6676641]
[1744533711543,2.6390254,129.59,129.58,2.6510035]
[1744533714768,25.902786,129.59,129.58,2.6510035]
[1744533715154,11.8861254,129.59,129.58,2.6510035]
[1744533719272,32.412286,129.59,129.58,2.6510035]
[1744533719870,32.412286,129.59,129.54,40.0166606]
[1744533720170,32.412286,129.59,129.54,47.7361606]
[1744533720467,32.412286,129.59,129.54,40.0166606]
[1744533721056,32.412286,129.59,129.55,2.68068067]
[1744533721466,32.412286,129.59,129.55,16.69734127]
[1744533721656,32.412286,129.59,129.55,2.68068067]
[1744533722266,32.412286,129.59,129.56,2.68068067]
[1744533723071,32.412286,129.59,129.57,2.68068067]
[1744533723870,32.412286,129.59,129.55,2.68068067]
[1744533724766,32.412286,129.59,129.56,2.68068067]
[1744533725281,27.33795941,129.59,129.56,2.68068067]
[1744533726165,27.33795941,129.59,129.54,8.94233401]
[1744533726387,8.94233401,129.57,129.52,16.66283401]
[1744533727059,8.94233401,129.57,129.53,2.6836865]
[1744533727263,16.66043401,129.57,129.53,2.6836865]
[1744533727455,8.94233401,129.56,129.54,2.6836865]
[1744533727685,7.7181,129.57,129.54,2.6836865]
[1744533727686,8.94233401,129.55,129.54,2.6836865]